fUST/lending_fUST_20250601
["ID","MTS","AMOUNT","RATE_DAILY","PERIOD"]
[363384728,1748711460364,-459.60408432,0.00020547,2]
[363384729,1748711460375,-430.0,0.00020547,2]
[363384730,1748711460385,-2098.4,0.00020547,2]
[363384731,1748711460395,-430.0,0.00020547,2]
[363384732,1748711460405,-1048.11,0.00020547,2]
[363384733,1748711460415,-489.26,0.00020547,2]
[363384734,1748711460424,-512.67,0.00020547,2]
[363384735,1748711460433,-526.15,0.00020547,2]
[363384736,1748711460443,-5017.28,0.00020547,2]
[363384737,1748711460453,-539.81,0.00020547,2]
[363384738,1748711460462,-209.695203,0.00020547,2]
[363384739,1748711460472,-1017.59,0.00020547,2]
[363384740,1748711460481,-209.695203,0.00020547,2]
[363384741,1748711460491,-745.59,0.00020547,2]
[363384742,1748711460501,-2361.99,0.00020547,2]
[363384743,1748711460510,-430.0,0.00020547,2]
[363384744,1748711460519,-1807.64,0.00020547,2]
[363384745,1748711460529,-430.0,0.00020547,2]
[363384746,1748711460538,-707.05,0.00020547,2]
[363384747,1748711460548,-554.68,0.00020547,2]
[363384748,1748711460558,-430.0,0.00020547,2]
[363384749,1748711460567,-765.34,0.00020547,2]
[363384750,1748711460577,-1861.82,0.00020547,2]
[363384751,1748711460587,-1278.09,0.00020547,2]
[363384752,1748711460596,-430.0,0.00020547,2]
[363384753,1748711460608,-1224.97,0.00020547,2]
[363384754,1748711460617,-537.5,0.00020547,2]
[363384755,1748711460627,-275.938584,0.00020547,2]
[363384756,1748711460637,-275.938584,0.00020547,2]
[363384757,1748711460646,-450.32,0.00020547,2]
[363384758,1748711460656,-779.61,0.00020547,2]
[363384759,1748711460666,-746.16,0.00020547,2]
[363384760,1748711460675,-430.0,0.00020547,2]
[363384761,1748711460684,-503.82,0.00020547,2]
[363384762,1748711460694,-824.29,0.00020547,2]
[363384763,1748711460703,-430.0,0.00020547,2]
[363384764,1748711460713,-500.0,0.00020547,2]
[363384765,1748711460726,-151.0,0.00020548,2]
[363384766,1748711460747,-152.249243,0.00020548,2]
[363384767,1748711460757,-981.297112,0.0002057,3]
[363384768,1748711460766,-151.0,0.0002057,2]
[363384769,1748711460776,-151.0,0.0002057,2]
[363384770,1748711460785,-416.713516,0.0002057,2]
[363384771,1748711460794,-416.713516,0.0002057,2]
[363384772,1748711460803,-151.0,0.0002057,2]
[363384773,1748711460811,-894.59,0.00020571,2]
[363384774,1748711460820,-151.0,0.000206,2]
[363384775,1748711460829,-151.0,0.000206,2]
[363384776,1748711460839,-177.534798,0.000206,2]
[363384777,1748711460847,-177.534798,0.000206,2]
[363384778,1748711460861,-75348.01,0.000206,2]
[363384779,1748711460870,-12177.18,0.000206,2]
[363384780,1748711460879,-151.0,0.000206,2]
[363384781,1748711460889,-151.0,0.000206,2]
[363384782,1748711460898,-969.344175,0.000206,2]
[363384783,1748711460906,-969.344175,0.000206,2]
[363384784,1748711460915,-151.0,0.000206,2]
[363384785,1748711460924,-314.653901,0.000206,2]
[363384786,1748711460932,-314.653901,0.000206,2]
[363384787,1748711460942,-275.938584,0.000206,2]
[363384788,1748711460951,-275.938574,0.000206,2]
[363384789,1748711460959,-151.0,0.000206,2]
[363384790,1748711460968,-627.223156,0.00020609,2]
[363384791,1748711460977,-627.223156,0.00020609,2]
[363384792,1748711460985,-151.0,0.00020609,2]
[363384793,1748711460993,-32591.21621012,0.00020721,3]
[363384794,1748711461001,-24779.37151654,0.00020721,2]
[363384795,1748711461009,-4020.33635565,0.00020721,2]
[363384796,1748711461018,-1643.40161787,0.00020762,3]
[363384797,1748711461026,-17515.76,0.00020794,2]
[363384798,1748711461035,-800.0,0.00020804,2]
[363384799,1748711461045,-151.0,0.00020808,2]
[363384800,1748711461053,-151.0,0.00020808,2]
[363384801,1748711461062,-266.842375,0.00020808,2]
[363384802,1748711461071,-266.842375,0.00020808,2]
[363384803,1748711461080,-151.0,0.00020808,2]
[363384804,1748711461087,-151.0,0.00020808,2]
[363384805,1748711461094,-825.12,0.00020821,2]
[363384806,1748711461104,-430.0,0.00020821,2]
[363384807,1748711461118,-430.0,0.00020821,2]
[363384808,1748711461127,-607.07,0.00020821,2]
[363384809,1748711461137,-665.76,0.00020821,2]
[363384810,1748711461147,-1495.35,0.00020821,2]
[363384811,1748711461158,-648.33,0.00020821,2]
[363384812,1748711461168,-609.11,0.00020821,2]
[363384813,1748711461178,-1984.25,0.00020821,2]
[363384814,1748711461188,-583.25,0.00020821,2]
[363384815,1748711461198,-1734.02,0.00020821,2]
[363384816,1748711461209,-430.0,0.00020821,2]
[363384817,1748711461218,-2098.4,0.00020821,2]
[363384818,1748711461228,-430.0,0.00020821,2]
[363384819,1748711461238,-1048.11,0.00020821,2]
[363384820,1748711461248,-512.67,0.00020821,2]
[363384821,1748711461260,-526.15,0.00020821,2]
[363384822,1748711461269,-5017.28,0.00020821,2]
[363384823,1748711461278,-539.81,0.00020821,2]
[363384824,1748711461288,-209.695203,0.00020821,2]
[363384825,1748711461297,-1017.59,0.00020821,2]
[363384826,1748711461307,-209.695203,0.00020821,2]
[363384827,1748711461316,-745.59,0.00020821,2]
[363384828,1748711461325,-2361.99,0.00020821,2]
[363384829,1748711461335,-430.0,0.00020821,2]
[363384830,1748711461344,-1807.64,0.00020821,2]
[363384831,1748711461354,-430.0,0.00020821,2]
[363384832,1748711461365,-707.05,0.00020821,2]
[363384833,1748711461374,-554.68,0.00020821,2]
[363384834,1748711461383,-430.0,0.00020821,2]
[363384835,1748711461393,-765.34,0.00020821,2]
[363384836,1748711461403,-1861.82,0.00020821,2]
[363384837,1748711461413,-1278.09,0.00020821,2]
[363384838,1748711461422,-430.0,0.00020821,2]
[363384839,1748711461432,-1224.97,0.00020821,2]
[363384840,1748711461442,-537.5,0.00020821,2]
[363384841,1748711461451,-450.32,0.00020821,2]
[363384842,1748711461462,-779.61,0.00020821,2]
[363384843,1748711461471,-746.16,0.00020821,2]
[363384844,1748711461481,-430.0,0.00020821,2]
[363384845,1748711461491,-503.82,0.00020821,2]
[363384846,1748711461500,-824.29,0.00020821,2]
[363384847,1748711461509,-430.0,0.00020821,2]
[363384848,1748711461519,-894.59,0.00020845,2]
[363384849,1748711461528,-500.0,0.0002089,2]
[363384850,1748711461538,-800.0,0.00020895,2]
[363384851,1748711461547,-151.0,0.000209,2]
[363384852,1748711461557,-151.0,0.000209,2]
[363384853,1748711461567,-5500.0,0.000209,3]
[363384854,1748711461577,-800.0,0.00020903,2]
[363384855,1748711461586,-183.330467,0.00020989,2]
[363384856,1748711461595,-183.330467,0.00020989,2]
[363384857,1748711461605,-159181.02814014,0.0002099,2]
[363384858,1748711461616,-151.0,0.0002099,2]
[363384859,1748711461625,-151.0,0.0002099,2]
[363384860,1748711461635,-294.787073,0.0002099,2]
[363384861,1748711461644,-151.0,0.0002099,2]
[363384862,1748711461741,-151.0,0.0002099,2]
[363384863,1748711461752,-151.0,0.0002099,2]
[363384864,1748711461762,-1060.0,0.00021,2]
[363384865,1748711461771,-12000.0,0.00021,2]
[363384866,1748711461781,-2000.0,0.00021,2]
[363384867,1748711461791,-3000.0,0.00021,2]
[363384868,1748711461801,-2000.0,0.00021004,2]
[363384869,1748711461812,-2000.0,0.00021004,2]
[363384870,1748711461822,-3000.0,0.0002101,2]
[363384871,1748711461832,-183.330467,0.0002102,2]
[363384872,1748711461842,-183.330467,0.0002102,2]
[363384873,1748711461851,-3000.0,0.0002102,2]
[363384874,1748711461862,-500.0,0.00021026,2]
[363384875,1748711461871,-3000.0,0.0002103,2]
[363384876,1748711461882,-1643.40161787,0.00021038,4]
[363384877,1748711461891,-3000.0,0.0002104,2]
[363384878,1748711461900,-3000.0,0.0002105,2]
[363384879,1748711461910,-151.0,0.0002106,2]
[363384880,1748711461920,-3000.0,0.0002106,2]
[363384881,1748711461929,-900.0,0.0002106,2]
[363384882,1748711461939,-969.344175,0.00021062,2]
[363384883,1748711461949,-969.34416663,0.00021062,2]
[363384884,1748711461959,-314.653901,0.00021062,2]
[363384885,1748711461969,-314.653899,0.00021062,2]
[363384886,1748711461978,-3000.0,0.0002107,2]
[363384887,1748711461988,-3000.0,0.0002108,2]
[363384888,1748711461998,-3000.0,0.0002109,2]
[363384889,1748711462008,-155.904382,0.0002109,2]
[363384890,1748711462017,-151.0,0.0002109,2]
[363384891,1748711462026,-500.0,0.0002109,2]
[363384892,1748711462037,-151.0,0.0002109,2]
[363384893,1748711462047,-825.12,0.00021095,2]
[363384894,1748711462056,-430.0,0.00021095,2]
[363384895,1748711462066,-151.0,0.00021095,2]
[363384896,1748711462075,-151.0,0.00021095,2]
[363384897,1748711462085,-416.713516,0.00021095,2]
[363384898,1748711462095,-416.713516,0.00021095,2]
[363384899,1748711462104,-151.0,0.00021095,2]
[363384900,1748711462114,-552.15875897,0.00021095,2]
[363384901,1748711462123,-607.07,0.00021095,2]
[363384902,1748711462133,-151.0,0.00021095,2]
[363384903,1748711462143,-151.0,0.00021095,2]
[363384904,1748711462152,-665.76,0.00021095,2]
[363384905,1748711462162,-1495.35,0.00021095,2]
[363384906,1748711462171,-648.33,0.00021095,2]
[363384907,1748711462181,-609.11,0.00021095,2]
[363384908,1748711462190,-1984.25,0.00021095,2]
[363384909,1748711462199,-583.25,0.00021095,2]
[363384910,1748711462208,-1734.02,0.00021095,2]
[363384911,1748711462217,-430.0,0.00021095,2]
[363384912,1748711462226,-2098.4,0.00021095,2]
[363384913,1748711462235,-430.0,0.00021095,2]
[363384914,1748711462244,-1048.11,0.00021095,2]
[363384915,1748711462253,-512.67,0.00021095,2]
[363384916,1748711462262,-526.15,0.00021095,2]
[363384917,1748711462271,-5017.28,0.00021095,2]
[363384918,1748711462279,-539.81,0.00021095,2]
[363384919,1748711462289,-209.695203,0.00021095,2]
[363384920,1748711462298,-1017.59,0.00021095,2]
[363384921,1748711462307,-209.695206,0.00021095,2]
[363384922,1748711462316,-745.59,0.00021095,2]
[363384923,1748711462324,-2361.99,0.00021095,2]
[363384924,1748711462333,-430.0,0.00021095,2]
[363384925,1748711462342,-1807.64,0.00021095,2]
[363384926,1748711462351,-430.0,0.00021095,2]
[363384927,1748711462361,-707.05,0.00021095,2]
[363384928,1748711462370,-554.68,0.00021095,2]
[363384929,1748711462380,-430.0,0.00021095,2]
[363384930,1748711462389,-765.34,0.00021095,2]
[363384931,1748711462398,-1861.82,0.00021095,2]
[363384932,1748711462408,-1278.09,0.00021095,2]
[363384933,1748711462417,-534.44,0.00021095,2]
[363384934,1748711462426,-1224.97,0.00021095,2]
[363384935,1748711462435,-537.5,0.00021095,2]
[363384936,1748711462444,-450.32,0.00021095,2]
[363384937,1748711462453,-779.61,0.00021095,2]
[363384938,1748711462462,-746.16,0.00021095,2]
[363384939,1748711462471,-253.76595677,0.00021095,2]
[363384940,1748711462480,-503.82,0.00021095,2]
[363384941,1748711462490,-824.29,0.00021095,2]
[363384942,1748711462499,-430.0,0.00021095,2]
[363384943,1748711462508,-151.0,0.000211,2]
[363384944,1748711462517,-151.0,0.000211,2]
[363384945,1748711462526,-151.0,0.000211,2]
[363384946,1748711462535,-3000.0,0.000211,2]
[363384947,1748711462545,-627.223156,0.000211,2]
[363384948,1748711462554,-627.223156,0.000211,2]
[363384949,1748711462563,-151.0,0.000211,2]
[363384950,1748711462572,-842.5625,0.000211,3]
[363384951,1748711462581,-212.77096907,0.000211,3]
[363384952,1748711462590,-4020.33635556,0.000211,2]
[363384953,1748711462599,-12664.98044988,0.000211,3]
[363384954,1748711462609,-3000.0,0.0002111,2]
[363384955,1748711462618,-894.59,0.00021119,2]
[363384956,1748711462627,-3000.0,0.0002112,2]
[363384957,1748711462636,-3000.0,0.0002113,2]
[363384958,1748711462646,-151.0,0.0002113,2]
[363384959,1748711462655,-151.0,0.0002113,2]
[363384960,1748711462665,-177.534798,0.0002113,2]
[363384961,1748711462674,-177.534798,0.0002113,2]
[363384962,1748711462684,-183.330467,0.00021135,2]
[363384963,1748711462693,-183.330467,0.00021135,2]
[363384964,1748711462703,-3000.0,0.0002114,2]
[363384965,1748711462713,-3000.0,0.0002115,2]
[363384966,1748711462723,-3000.0,0.0002116,2]
[363384967,1748711462736,-3000.0,0.0002117,2]
[363384968,1748711462746,-151.0,0.0002118,2]
[363384969,1748711462755,-3000.0,0.0002118,2]
[363384970,1748711462765,-151.0,0.0002118,2]
[363384971,1748711462775,-169.884811,0.0002118,2]
[363384972,1748711462786,-266.842375,0.0002118,2]
[363384973,1748711462795,-266.842375,0.0002118,2]
[363384974,1748711462806,-151.0,0.0002118,2]
[363384975,1748711462816,-151.0,0.0002118,2]
[363384976,1748711462826,-3000.0,0.0002119,2]
[363384977,1748711462836,-151.0,0.000212,2]
[363384978,1748711462846,-151.0,0.000212,2]
[363384979,1748711462856,-151.0,0.000212,2]
[363384980,1748711462866,-3000.0,0.000212,2]
[363384981,1748711462877,-151.0,0.000212,2]
[363384982,1748711462886,-293.238256,0.000212,2]
[363384983,1748711462897,-3000.0,0.0002121,2]
[363384984,1748711462906,-3000.0,0.0002122,2]
[363384985,1748711462916,-215.0738,0.00021221,2]
[363384986,1748711462926,-3000.0,0.0002123,2]
[363384987,1748711462936,-3000.0,0.0002124,2]
[363384988,1748711462946,-183.330467,0.0002125,2]
[363384989,1748711462955,-183.330467,0.0002125,2]
[363384990,1748711462965,-3000.0,0.0002125,2]
[363384991,1748711462974,-3000.0,0.0002126,2]
[363384992,1748711462984,-364.3142842,0.0002126,2]
[363384993,1748711462993,-364.3142842,0.0002126,2]
[363384994,1748711463003,-364.3142842,0.0002126,2]
[363384995,1748711463012,-3000.0,0.0002127,2]
[363384996,1748711463022,-3000.0,0.0002128,2]
[363384997,1748711463032,-3000.0,0.0002129,2]
[363384998,1748711463042,-500.0,0.0002129,2]
[363384999,1748711463053,-287.55,0.000213,2]
[363385000,1748711463063,-151.0,0.000213,2]
[363385001,1748711463075,-151.0,0.000213,2]
[363385002,1748711463086,-151.0,0.000213,2]
[363385003,1748711463096,-151.0,0.000213,2]
[363385004,1748711463106,-3000.0,0.000213,2]
[363385005,1748711463116,-3000.0,0.0002131,2]
[363385006,1748711463127,-1643.40161787,0.00021314,5]
[363385007,1748711463137,-3000.0,0.0002132,2]
[363385008,1748711463147,-183.330467,0.0002133,2]
[363385009,1748711463157,-183.330476,0.0002133,2]
[363385010,1748711463167,-3000.0,0.0002133,2]
[363385011,1748711463178,-500.0,0.00021338,2]
[363385012,1748711463189,-3000.0,0.0002134,2]
[363385013,1748711463199,-3000.0,0.0002135,2]
[363385014,1748711463210,-151.0,0.0002135,2]
[363385015,1748711463221,-151.0,0.0002135,2]
[363385016,1748711463231,-3000.0,0.0002136,2]
[363385017,1748711463241,-825.12,0.00021369,2]
[363385018,1748711463251,-315.87,0.00021369,2]
[363385019,1748711463261,-607.07,0.00021369,2]
[363385020,1748711463271,-665.76,0.00021369,2]
[363385021,1748711463282,-1495.35,0.00021369,2]
[363385022,1748711463292,-648.33,0.00021369,2]
[363385023,1748711463303,-609.11,0.00021369,2]
[363385024,1748711463313,-1984.25,0.00021369,2]
[363385025,1748711463406,-583.25,0.00021369,2]
[363385026,1748711463418,-1734.02,0.00021369,2]
[363385027,1748711463428,-430.0,0.00021369,2]
[363385028,1748711463438,-2098.4,0.00021369,2]
[363385029,1748711463448,-430.0,0.00021369,2]
[363385030,1748711463458,-1048.11,0.00021369,2]
[363385031,1748711463468,-512.67,0.00021369,2]
[363385032,1748711463478,-526.15,0.00021369,2]
[363385033,1748711463489,-5017.28,0.00021369,2]
[363385034,1748711463500,-539.81,0.00021369,2]
[363385035,1748711463509,-1017.59,0.00021369,2]
[363385036,1748711463519,-745.59,0.00021369,2]
[363385037,1748711463529,-2361.99,0.00021369,2]
[363385038,1748711463538,-430.0,0.00021369,2]
[363385039,1748711463548,-1807.64,0.00021369,2]
[363385040,1748711463557,-312.0,0.00021369,2]
[363385041,1748711463568,-707.05,0.00021369,2]
[363385042,1748711463579,-554.68,0.00021369,2]
[363385043,1748711463589,-509.40951247,0.00021369,2]
[363385044,1748711463599,-765.34,0.00021369,2]
[363385045,1748711463610,-1861.82,0.00021369,2]
[363385046,1748711463620,-1278.09,0.00021369,2]
[363385047,1748711463630,-1224.97,0.00021369,2]
[363385048,1748711463640,-537.5,0.00021369,2]
[363385049,1748711463651,-450.32,0.00021369,2]
[363385050,1748711463661,-779.61,0.00021369,2]
[363385051,1748711463671,-746.16,0.00021369,2]
[363385052,1748711463682,-503.82,0.00021369,2]
[363385053,1748711463691,-824.29,0.00021369,2]
[363385054,1748711463702,-430.0,0.00021369,2]
[363385055,1748711463712,-151.0,0.0002137,2]
[363385056,1748711463723,-151.0,0.0002137,2]
[363385057,1748711463736,-3000.0,0.0002137,2]
[363385058,1748711463747,-151.0,0.0002137,2]
[363385059,1748711463756,-151.0,0.0002137,2]
[363385060,1748711463767,-627.223156,0.0002137,2]
[363385061,1748711463777,-627.223156,0.0002137,2]
[363385062,1748711463787,-151.0,0.0002137,2]
[363385063,1748711463797,-416.713516,0.0002137,2]
[363385064,1748711463809,-416.713516,0.0002137,2]
[363385065,1748711463819,-151.0,0.0002137,2]
[363385066,1748711463830,-3000.0,0.0002138,2]
[363385067,1748711463840,-3000.0,0.0002139,2]
[363385068,1748711463850,-894.59,0.00021393,2]
[363385069,1748711463862,-3000.0,0.000214,2]
[363385070,1748711463872,-3000.0,0.0002141,2]
[363385071,1748711463883,-151.0,0.0002142,2]
[363385072,1748711463894,-151.0,0.0002142,2]
[363385073,1748711463905,-151.0,0.0002142,2]
[363385074,1748711463915,-3000.0,0.0002142,2]
[363385075,1748711463925,-3000.0,0.0002143,2]
[363385076,1748711463936,-151.0,0.0002143,2]
[363385077,1748711463947,-151.0,0.0002143,2]
[363385078,1748711463966,-177.534798,0.0002143,2]
[363385079,1748711463980,-177.534798,0.0002143,2]
[363385080,1748711463991,-4183.81228,0.0002144,2]
[363385081,1748711464001,-4020.33635556,0.00021479,2]
[363385082,1748711464012,-151.0,0.00021501,2]
[363385083,1748711464023,-266.842375,0.00021501,2]
[363385084,1748711464034,-266.842375,0.00021501,2]
[363385085,1748711464045,-151.0,0.00021501,2]
[363385086,1748711464055,-151.0,0.00021501,2]
[363385087,1748711464066,-962.0,0.00021517,2]
[363385088,1748711464077,-708.0,0.00021517,2]
[363385089,1748711464087,-2227.0,0.00021517,2]
[363385090,1748711464098,-1134.13008028,0.00021552,2]
[363385091,1748711464112,-2500.0,0.00021552,2]
[363385092,1748711464122,-1000.0,0.00021574,2]
[363385093,1748711464133,-1643.40161787,0.0002159,5]
[363385094,1748711464144,-151.0,0.000216,2]
[363385095,1748711464155,-5500.0,0.000216,3]
[363385096,1748711464167,-4500.0,0.000216,3]
[363385097,1748711464179,-3456.0,0.00021642,2]
[363385098,1748711464190,-825.12,0.00021643,2]
[363385099,1748711464201,-627.223156,0.00021643,2]
[363385100,1748711464211,-627.223156,0.00021643,2]
[363385101,1748711464221,-151.0,0.00021643,2]
[363385102,1748711464231,-607.07,0.00021643,2]
[363385103,1748711464241,-665.76,0.00021643,2]
[363385104,1748711464252,-1495.35,0.00021643,2]
[363385105,1748711464262,-648.33,0.00021643,2]
[363385106,1748711464273,-609.11,0.00021643,2]
[363385107,1748711464284,-1984.25,0.00021643,2]
[363385108,1748711464294,-583.25,0.00021643,2]
[363385109,1748711464304,-1734.02,0.00021643,2]
[363385110,1748711464314,-430.0,0.00021643,2]
[363385111,1748711464326,-2098.4,0.00021643,2]
[363385112,1748711464336,-430.0,0.00021643,2]
[363385113,1748711464346,-1048.11,0.00021643,2]
[363385114,1748711464356,-512.67,0.00021643,2]
[363385115,1748711464368,-526.15,0.00021643,2]
[363385116,1748711464379,-5017.28,0.00021643,2]
[363385117,1748711464389,-539.81,0.00021643,2]
[363385118,1748711464399,-1017.59,0.00021643,2]
[363385119,1748711464409,-745.59,0.00021643,2]
[363385120,1748711464419,-2361.99,0.00021643,2]
[363385121,1748711464429,-430.0,0.00021643,2]
[363385122,1748711464440,-1807.64,0.00021643,2]
[363385123,1748711464450,-707.05,0.00021643,2]
[363385124,1748711464459,-554.68,0.00021643,2]
[363385125,1748711464470,-765.34,0.00021643,2]
[363385126,1748711464481,-1861.82,0.00021643,2]
[363385127,1748711464491,-1278.09,0.00021643,2]
[363385128,1748711464501,-1224.97,0.00021643,2]
[363385129,1748711464511,-537.5,0.00021643,2]
[363385130,1748711464521,-450.32,0.00021643,2]
[363385131,1748711464531,-779.61,0.00021643,2]
[363385132,1748711464541,-746.16,0.00021643,2]
[363385133,1748711464551,-503.82,0.00021643,2]
[363385134,1748711464561,-824.29,0.00021643,2]
[363385135,1748711464571,-430.0,0.00021643,2]
[363385136,1748711464582,-894.59,0.00021667,2]
[363385137,1748711464596,-151.0,0.00021671,2]
[363385138,1748711464606,-151.0,0.00021671,2]
[363385139,1748711464617,-416.713516,0.00021671,2]
[363385140,1748711464627,-416.713516,0.00021671,2]
[363385141,1748711464637,-151.0,0.00021671,2]
[363385142,1748711464647,-176.4540852,0.00021671,2]
[363385143,1748711464657,-572.2963003,0.00021671,2]
[363385144,1748711464666,-258.8270457,0.00021671,2]
[363385145,1748711464676,-158.4581234,0.00021671,2]
[363385146,1748711464689,-153.0,0.00021671,2]
[363385147,1748711464704,-176.4540852,0.00021671,2]
[363385148,1748711464715,-153.0,0.00021671,2]
[363385149,1748711464736,-572.2963003,0.00021671,2]
[363385150,1748711464752,-175.4301295,0.00021671,2]
[363385151,1748711464762,-158.4581234,0.00021671,2]
[363385152,1748711464771,-571.0001629,0.00021671,2]
[363385153,1748711464781,-153.0,0.00021671,2]
[363385154,1748711464791,-153.0,0.00021671,2]
[363385155,1748711464802,-158.4581234,0.00021671,2]
[363385156,1748711464812,-158.4581234,0.00021671,2]
[363385157,1748711464822,-153.0,0.00021671,2]
[363385158,1748711464833,-153.0,0.00021671,2]
[363385159,1748711464843,-153.0,0.00021671,2]
[363385160,1748711464853,-153.0,0.00021671,2]
[363385161,1748711464864,-23354.35,0.00021698,2]
[363385162,1748711464875,-75348.01,0.000217,2]
[363385163,1748711464884,-12177.18,0.000217,2]
[363385164,1748711464894,-151.0,0.0002171,2]
[363385165,1748711464904,-250.0,0.000218,30]
[363385166,1748711464914,-4020.33635556,0.00021858,2]
[363385167,1748711464924,-1643.40161787,0.00021866,6]
[363385168,1748711464933,-1152.0,0.00021871,2]
[363385169,1748711464943,-797.49248903,0.00021885,2]
[363385170,1748711464954,-2000.0,0.00021896,2]
[363385171,1748711464964,-151.0,0.00021914,2]
[363385172,1748711464974,-160.494634,0.00021917,2]
[363385173,1748711464984,-151.0,0.00021917,2]
[363385174,1748711464994,-151.0,0.00021917,2]
[363385175,1748711465004,-680.82994,0.00021917,2]
[363385176,1748711465135,-680.82994,0.00021917,2]
[363385177,1748711465146,-231.871531,0.00021917,2]
[363385178,1748711465156,-231.871531,0.00021917,2]
[363385179,1748711465167,-200.0,0.00021917,2]
[363385180,1748711465178,-825.12,0.00021917,2]
[363385181,1748711465188,-607.07,0.00021917,2]
[363385182,1748711465198,-665.76,0.00021917,2]
[363385183,1748711465208,-1495.35,0.00021917,2]
[363385184,1748711465218,-648.33,0.00021917,2]
[363385185,1748711465229,-609.11,0.00021917,2]
[363385186,1748711465240,-1984.25,0.00021917,2]
[363385187,1748711465249,-583.25,0.00021917,2]
[363385188,1748711465260,-1734.02,0.00021917,2]
[363385189,1748711465270,-430.0,0.00021917,2]
[363385190,1748711465281,-2098.4,0.00021917,2]
[363385191,1748711465291,-430.0,0.00021917,2]
[363385192,1748711465301,-894.01320895,0.00021917,2]
[363385193,1748711465535,-500.0,0.00016437,2]
[363385194,1748711465546,-430.0,0.00016438,2]
[363385195,1748711465556,-430.0,0.00016438,2]
[363385196,1748711465566,-430.0,0.00016438,2]
[363385197,1748711465576,-430.0,0.00016712,2]
[363385198,1748711465586,-430.0,0.00016712,2]
[363385199,1748711465596,-314.03460454,0.00016712,2]
[363385200,1748711465607,-430.0,0.00016986,2]
[363385201,1748711465617,-430.0,0.00016986,2]
[363385202,1748711465627,-430.0,0.0001726,2]
[363385203,1748711465636,-430.0,0.00017534,2]
[363385204,1748711465646,-430.0,0.00017808,2]
[363385205,1748711465656,-160.0,0.00018,2]
[363385206,1748711465665,-430.0,0.00018082,2]
[363385207,1748711465674,-430.0,0.00018356,2]
[363385208,1748711465685,-430.0,0.0001863,2]
[363385209,1748711465694,-461.78,0.00018904,2]
[363385210,1748711465704,-154.09679105,0.00021917,2]
[363385211,1748711465713,-500.0,0.00021917,2]
[363385212,1748711465724,-512.67,0.00021917,2]
[363385213,1748711465736,-526.15,0.00021917,2]
[363385214,1748711465747,-5017.28,0.00021917,2]
[363385215,1748711465757,-539.81,0.00021917,2]
[363385216,1748711465767,-463.17608345,0.00021917,2]
[363385217,1748711465827,-424.85338045,0.00016438,2]
[363385218,1748711467188,-5.14661955,0.00016438,2]
[363385219,1748711467198,-411.42155834,0.00016438,2]
[363385220,1748711467208,-430.0,0.00016712,2]
[363385221,1748711467218,-151.0,0.00017283,2]
[363385222,1748711467227,-354.41713457,0.00021917,2]
[363385223,1748711467240,-199.99678198,0.00021917,2]
[363385224,1748711467250,-745.59,0.00021917,2]
[363385225,1748711467260,-2361.99,0.00021917,2]
[363385226,1748711467270,-430.0,0.00021917,2]
[363385227,1748711467280,-1807.64,0.00021917,2]